[Event "Titled Tuesday Blitz May 25 2021"]
[White "Kosteniuk, Alexandra"]
[Black "Ambartsumova, Karina"]
[WhiteFideId "4128125"]
[BlackFideId "4166299"]
[WhiteElo "2521"]
[BlackElo "2262"]
[Result "1-0"]
[Round "06"]
[TimeControl "180+1"]
[Date "2021.05.25"]
[WhiteClock "0:00:20"]
[BlackClock "0:00:06"]

1. e4 {[%clk 0:03:00]}  e5 {[%clk 0:02:25]} 2. Nf3 {[%clk 0:03:00]}  Nc6 {[%clk 0:02:23]} 3. Bb5 {[%clk 0:03:00]}  a6 {[%clk 0:02:23]} 4. Ba4 {[%clk 0:02:59]}  Nf6 {[%clk 0:02:23]} 5. d4 {[%clk 0:02:59]}  exd4 {[%clk 0:02:00]} 6. O-O {[%clk 0:02:58]}  Bc5 {[%clk 0:01:46]} 7. e5 {[%clk 0:02:50]}  Nd5 {[%clk 0:01:46]} 8. c3 {[%clk 0:02:40]}  O-O {[%clk 0:01:40]} 9. cxd4 {[%clk 0:02:39]}  Be7 {[%clk 0:01:20]} 10. Bb3 {[%clk 0:02:33]}  Nb6 {[%clk 0:01:20]} 11. d5 {[%clk 0:02:26]}  Na5 {[%clk 0:01:14]} 12. d6 {[%clk 0:02:26]}  cxd6 {[%clk 0:01:11]} 13. exd6 {[%clk 0:02:26]}  Bf6 {[%clk 0:01:10]} 14. Bc2 {[%clk 0:02:22]}  Nac4 {[%clk 0:01:03]} 15. Nc3 {[%clk 0:02:19]}  g6 {[%clk 0:01:01]} 16. Bh6 {[%clk 0:02:13]}  Re8 {[%clk 0:01:01]} 17. Nd5 {[%clk 0:01:53]}  Nxd5 {[%clk 0:00:34]} 18. Qxd5 {[%clk 0:01:53]}  Nb6 {[%clk 0:00:26]} 19. Qd3 {[%clk 0:01:47]}  a5 {[%clk 0:00:20]} 20. a4 {[%clk 0:01:40]}  Bxb2 {[%clk 0:00:14]} 21. Rae1 {[%clk 0:01:39]}  Re6 {[%clk 0:00:14]} 22. Bb3 {[%clk 0:01:37]}  Bf6 {[%clk 0:00:13]} 23. Nd2 {[%clk 0:01:28]}  Ra6 {[%clk 0:00:13]} 24. Ne4 {[%clk 0:01:26]}  Na8 {[%clk 0:00:08]} 25. Bxe6 {[%clk 0:01:21]}  fxe6 {[%clk 0:00:06]} 26. Qf3 {[%clk 0:01:08]}  Bg7 {[%clk 0:00:06]} 27. Bg5 {[%clk 0:01:08]}  Qe8 {[%clk 0:00:05]} 28. Be7 {[%clk 0:01:05]}  Rc6 {[%clk 0:00:05]} 29. Rc1 {[%clk 0:00:51]}  Nb6 {[%clk 0:00:05]} 30. Rxc6 {[%clk 0:00:45]}  bxc6 {[%clk 0:00:05]} 31. Nf6+ {[%clk 0:00:44]}  Bxf6 {[%clk 0:00:05]} 32. Bxf6 {[%clk 0:00:44]}  Nd5 {[%clk 0:00:06]} 33. Be5 {[%clk 0:00:43]}  Qf7 {[%clk 0:00:06]} 34. Qg3 {[%clk 0:00:23]}  Ba6 {[%clk 0:00:06]} 35. Rb1 {[%clk 0:00:22]}  Nb4 {[%clk 0:00:06]} 36. Qh4 {[%clk 0:00:22]}  h5 {[%clk 0:00:05]} 37. Qd8+ {[%clk 0:00:21]}  Qf8 {[%clk 0:00:06]} 38. Qxd7 {[%clk 0:00:22]}  Nd3 {[%clk 0:00:06]} 39. Qxe6+ {[%clk 0:00:21]}  Kh7 {[%clk 0:00:06]} 40. Qe7+ {[%clk 0:00:20]}  Kh6 {[%clk 0:00:06]} 41. Qxf8+ {[%clk 0:00:20]} 1-0


[Site "https://www.chess.com"]

[Event "Titled Tuesday Blitz May 25 2021"]
[White "Kovalev, Vladislav"]
[Black "Wieczorek, Oskar"]
[WhiteFideId "13504398"]
[BlackFideId "1133950"]
[WhiteElo "2573"]
[BlackElo "2258"]
[Result "1-0"]
[Round "06"]
[TimeControl "180+1"]
[Date "2021.05.25"]
[WhiteClock "0:00:12"]
[BlackClock "0:00:04"]

1. e4 {[%clk 0:03:00]}  e5 {[%clk 0:02:59]} 2. Nf3 {[%clk 0:03:01]}  Nc6 {[%clk 0:02:59]} 3. Nc3 {[%clk 0:03:01]}  Nf6 {[%clk 0:02:59]} 4. h3 {[%clk 0:03:02]}  h6 {[%clk 0:02:43]} 5. Bb5 {[%clk 0:02:51]}  Bd6 {[%clk 0:02:26]} 6. O-O {[%clk 0:02:50]}  O-O {[%clk 0:02:24]} 7. d3 {[%clk 0:02:50]}  Re8 {[%clk 0:02:21]} 8. a3 {[%clk 0:02:45]}  Bf8 {[%clk 0:02:12]} 9. Bc4 {[%clk 0:02:44]}  d6 {[%clk 0:02:06]} 10. b4 {[%clk 0:02:24]}  a6 {[%clk 0:01:47]} 11. Re1 {[%clk 0:01:47]}  Ne7 {[%clk 0:01:36]} 12. Ne2 {[%clk 0:01:27]}  Ng6 {[%clk 0:01:34]} 13. Ng3 {[%clk 0:01:27]}  c6 {[%clk 0:01:25]} 14. Bb3 {[%clk 0:01:21]}  Be6 {[%clk 0:01:23]} 15. Bxe6 {[%clk 0:01:21]}  Rxe6 {[%clk 0:01:22]} 16. c4 {[%clk 0:01:21]}  d5 {[%clk 0:01:05]} 17. Qc2 {[%clk 0:01:21]}  a5 {[%clk 0:01:02]} 18. Bd2 {[%clk 0:01:19]}  a4 {[%clk 0:00:50]} 19. Re2 {[%clk 0:01:13]}  d4 {[%clk 0:00:48]} 20. c5 {[%clk 0:01:10]}  Ne8 {[%clk 0:00:37]} 21. Rf1 {[%clk 0:01:09]}  Nc7 {[%clk 0:00:37]} 22. Bc1 {[%clk 0:01:07]}  Nb5 {[%clk 0:00:37]} 23. Nd2 {[%clk 0:01:08]}  Nc3 {[%clk 0:00:37]} 24. Ree1 {[%clk 0:01:08]}  Nb5 {[%clk 0:00:24]} 25. Nc4 {[%clk 0:01:08]}  Nf4 {[%clk 0:00:20]} 26. Nxe5 {[%clk 0:00:49]}  Nxh3+ {[%clk 0:00:20]} 27. gxh3 {[%clk 0:00:50]}  Rxe5 {[%clk 0:00:21]} 28. f4 {[%clk 0:00:50]}  Re8 {[%clk 0:00:21]} 29. Kh2 {[%clk 0:00:51]}  Qc7 {[%clk 0:00:21]} 30. Nf5 {[%clk 0:00:48]}  g6 {[%clk 0:00:20]} 31. Rg1 {[%clk 0:00:49]}  Kh7 {[%clk 0:00:19]} 32. Qg2 {[%clk 0:00:44]}  Rad8 {[%clk 0:00:18]} 33. Qg3 {[%clk 0:00:40]}  Nc3 {[%clk 0:00:09]} 34. h4 {[%clk 0:00:33]}  h5 {[%clk 0:00:09]} 35. Rg2 {[%clk 0:00:30]}  Nb5 {[%clk 0:00:09]} 36. Reg1 {[%clk 0:00:29]}  Re6 {[%clk 0:00:10]} 37. Qg5 {[%clk 0:00:28]}  Rde8 {[%clk 0:00:10]} 38. Bb2 {[%clk 0:00:23]}  Qd8 {[%clk 0:00:09]} 39. Qxd8 {[%clk 0:00:12]}  Rxd8 {[%clk 0:00:10]} 40. Ng3 {[%clk 0:00:13]}  Bg7 {[%clk 0:00:07]} 41. Ne2 {[%clk 0:00:13]}  Ree8 {[%clk 0:00:07]} 42. Rg5 {[%clk 0:00:13]}  Nc3 {[%clk 0:00:07]} 43. R5g2 {[%clk 0:00:11]}  Bf6 {[%clk 0:00:03]} 44. Kh3 {[%clk 0:00:11]}  Nxe2 {[%clk 0:00:03]} 45. Rxe2 {[%clk 0:00:12]}  Bg7 {[%clk 0:00:04]} 46. Rf2 {[%clk 0:00:11]}  f5 {[%clk 0:00:04]} 47. e5 {[%clk 0:00:09]}  Re6 {[%clk 0:00:04]} 48. Rfg2 {[%clk 0:00:10]}  Rd5 {[%clk 0:00:04]} 49. Bc1 {[%clk 0:00:09]}  Rd7 {[%clk 0:00:03]} 50. Bd2 {[%clk 0:00:10]}  Rd8 {[%clk 0:00:03]} 51. Be1 {[%clk 0:00:11]}  Rb8 {[%clk 0:00:03]} 52. Bf2 {[%clk 0:00:12]}  b6 {[%clk 0:00:04]} 53. cxb6 {[%clk 0:00:12]}  Rxb6 {[%clk 0:00:05]} 54. Rc1 {[%clk 0:00:13]}  Kg8 {[%clk 0:00:05]} 55. Bxd4 {[%clk 0:00:12]}  Rb5 {[%clk 0:00:05]} 56. Bc5 {[%clk 0:00:12]}  Kf7 {[%clk 0:00:05]} 57. Kg3 {[%clk 0:00:12]}  Bh6 {[%clk 0:00:05]} 58. Kf3 {[%clk 0:00:12]}  Bf8 {[%clk 0:00:06]} 59. Bxf8 {[%clk 0:00:12]}  Kxf8 {[%clk 0:00:07]} 60. Rc5 {[%clk 0:00:11]}  Rxc5 {[%clk 0:00:07]} 61. bxc5 {[%clk 0:00:12]}  Re7 {[%clk 0:00:07]} 62. Rb2 {[%clk 0:00:12]}  Kf7 {[%clk 0:00:05]} 63. d4 {[%clk 0:00:12]}  Rd7 {[%clk 0:00:06]} 64. Ke3 {[%clk 0:00:13]}  Ke6 {[%clk 0:00:06]} 65. Kd3 {[%clk 0:00:12]}  Kd5 {[%clk 0:00:07]} 66. Rb8 {[%clk 0:00:12]}  Ke6 {[%clk 0:00:04]} 67. Kc4 {[%clk 0:00:12]} 1-0


[Site "https://www.chess.com"]

[Event "Titled Tuesday Blitz May 25 2021"]
[White "Kretov, Evgenij"]
[Black "Sorokin, Aleksey"]
[WhiteFideId "4167821"]
[BlackFideId "24176460"]
[WhiteElo "2381"]
[BlackElo "2476"]
[Result "0-1"]
[Round "06"]
[TimeControl "180+1"]
[Date "2021.05.25"]
[WhiteClock "0:00:43"]
[BlackClock "0:01:11"]

1. d4 {[%clk 0:03:00]}  Nf6 {[%clk 0:02:59]} 2. c4 {[%clk 0:03:00]}  g6 {[%clk 0:03:00]} 3. Nc3 {[%clk 0:03:01]}  d5 {[%clk 0:03:00]} 4. cxd5 {[%clk 0:03:01]}  Nxd5 {[%clk 0:03:01]} 5. Bd2 {[%clk 0:03:01]}  Bg7 {[%clk 0:03:00]} 6. e4 {[%clk 0:03:01]}  Nxc3 {[%clk 0:03:01]} 7. Bxc3 {[%clk 0:03:01]}  O-O {[%clk 0:03:01]} 8. Qd2 {[%clk 0:02:59]}  c5 {[%clk 0:03:01]} 9. d5 {[%clk 0:03:00]}  e6 {[%clk 0:03:01]} 10. Bxg7 {[%clk 0:02:57]}  Kxg7 {[%clk 0:03:01]} 11. Nf3 {[%clk 0:02:55]}  exd5 {[%clk 0:02:52]} 12. exd5 {[%clk 0:02:55]}  Qf6 {[%clk 0:02:51]} 13. Be2 {[%clk 0:02:51]}  Bg4 {[%clk 0:02:42]} 14. O-O {[%clk 0:02:51]}  Nd7 {[%clk 0:02:42]} 15. Rac1 {[%clk 0:02:41]}  Rad8 {[%clk 0:02:41]} 16. Rfd1 {[%clk 0:02:38]}  Rfe8 {[%clk 0:02:36]} 17. h3 {[%clk 0:02:37]}  Bxf3 {[%clk 0:02:35]} 18. Bxf3 {[%clk 0:02:37]}  b6 {[%clk 0:02:35]} 19. a4 {[%clk 0:02:33]}  Re5 {[%clk 0:02:13]} 20. d6 {[%clk 0:02:24]}  h5 {[%clk 0:02:07]} 21. b4 {[%clk 0:02:12]}  Re6 {[%clk 0:02:02]} 22. a5 {[%clk 0:02:03]}  Ne5 {[%clk 0:01:59]} 23. axb6 {[%clk 0:01:58]}  Rexd6 {[%clk 0:01:46]} 24. Qxd6 {[%clk 0:01:23]}  Rxd6 {[%clk 0:01:33]} 25. Rxd6 {[%clk 0:01:22]}  Qxd6 {[%clk 0:01:32]} 26. bxa7 {[%clk 0:01:20]}  Nxf3+ {[%clk 0:01:27]} 27. gxf3 {[%clk 0:01:20]}  Qa6 {[%clk 0:01:23]} 28. bxc5 {[%clk 0:01:19]}  Qxa7 {[%clk 0:01:24]} 29. c6 {[%clk 0:01:20]}  Qc7 {[%clk 0:01:23]} 30. Kg2 {[%clk 0:01:09]}  Kf6 {[%clk 0:01:23]} 31. Rc2 {[%clk 0:01:04]}  Ke7 {[%clk 0:01:23]} 32. Rc1 {[%clk 0:01:02]}  Kd8 {[%clk 0:01:22]} 33. Rc2 {[%clk 0:00:57]}  Kc8 {[%clk 0:01:19]} 34. Rc4 {[%clk 0:00:54]}  Qe5 {[%clk 0:01:12]} 35. c7 {[%clk 0:00:51]}  Qg5+ {[%clk 0:01:11]} 36. Kh2 {[%clk 0:00:51]}  Qd5 {[%clk 0:01:11]} 37. Rc3 {[%clk 0:00:43]}  Qe5+ {[%clk 0:01:11]} 0-1


[Site "https://www.chess.com"]

[Event "Titled Tuesday Blitz May 25 2021"]
[White "Langner, Ladislav"]
[Black "Jarovinsky, Alexey"]
[WhiteFideId "300403"]
[BlackFideId "14115131"]
[WhiteElo "2346"]
[BlackElo "2446"]
[Result "0-1"]
[Round "06"]
[TimeControl "180+1"]
[Date "2021.05.25"]
[WhiteClock "0:00:01"]
[BlackClock "0:00:07"]

1. e4 {[%clk 0:03:00]}  Nc6 {[%clk 0:02:58]} 2. d4 {[%clk 0:02:59]}  d5 {[%clk 0:02:56]} 3. e5 {[%clk 0:02:59]}  Bf5 {[%clk 0:02:55]} 4. c3 {[%clk 0:02:59]}  e6 {[%clk 0:02:53]} 5. Nf3 {[%clk 0:02:57]}  f6 {[%clk 0:02:51]} 6. exf6 {[%clk 0:02:44]}  Nxf6 {[%clk 0:02:52]} 7. Bd3 {[%clk 0:02:43]}  Bd6 {[%clk 0:02:47]} 8. O-O {[%clk 0:02:39]}  O-O {[%clk 0:02:46]} 9. Bxf5 {[%clk 0:02:28]}  exf5 {[%clk 0:02:47]} 10. Bg5 {[%clk 0:02:28]}  h6 {[%clk 0:02:36]} 11. Bxf6 {[%clk 0:02:27]}  Qxf6 {[%clk 0:02:36]} 12. Qb3 {[%clk 0:02:27]}  Ne7 {[%clk 0:02:28]} 13. Nbd2 {[%clk 0:02:15]}  b6 {[%clk 0:02:22]} 14. Rfe1 {[%clk 0:02:12]}  c6 {[%clk 0:02:11]} 15. Ne5 {[%clk 0:02:10]}  Bxe5 {[%clk 0:02:08]} 16. dxe5 {[%clk 0:01:55]}  Qe6 {[%clk 0:02:04]} 17. c4 {[%clk 0:01:49]}  d4 {[%clk 0:01:59]} 18. c5 {[%clk 0:01:46]}  Kf7 {[%clk 0:01:44]} 19. Rac1 {[%clk 0:01:33]}  Rfd8 {[%clk 0:01:39]} 20. cxb6 {[%clk 0:01:27]}  Qxb3 {[%clk 0:01:37]} 21. axb3 {[%clk 0:01:17]}  axb6 {[%clk 0:01:36]} 22. Nc4 {[%clk 0:01:01]}  b5 {[%clk 0:01:21]} 23. e6+ {[%clk 0:01:01]}  Kf6 {[%clk 0:01:20]} 24. Ne5 {[%clk 0:01:00]}  Rd6 {[%clk 0:01:11]} 25. Nd7+ {[%clk 0:00:53]}  Rxd7 {[%clk 0:00:55]} 26. exd7 {[%clk 0:00:52]}  Rd8 {[%clk 0:00:55]} 27. Rc5 {[%clk 0:00:40]}  Rxd7 {[%clk 0:00:53]} 28. Rd1 {[%clk 0:00:34]}  f4 {[%clk 0:00:41]} 29. Kf1 {[%clk 0:00:34]}  Rd6 {[%clk 0:00:35]} 30. Ke2 {[%clk 0:00:30]}  Ng6 {[%clk 0:00:31]} 31. Kf3 {[%clk 0:00:21]}  Ne5+ {[%clk 0:00:27]} 32. Kxf4 {[%clk 0:00:21]}  Nd7 {[%clk 0:00:25]} 33. Rf5+ {[%clk 0:00:16]}  Kg6 {[%clk 0:00:25]} 34. g4 {[%clk 0:00:14]}  c5 {[%clk 0:00:18]} 35. Ke4 {[%clk 0:00:13]}  Nf6+ {[%clk 0:00:11]} 36. Kd3 {[%clk 0:00:13]}  Nxg4 {[%clk 0:00:07]} 37. Rf4 {[%clk 0:00:10]}  Kg5 {[%clk 0:00:05]} 38. Rf7 {[%clk 0:00:09]}  Ne5+ {[%clk 0:00:04]} 39. Ke4 {[%clk 0:00:09]}  Nxf7 {[%clk 0:00:05]} 40. Rg1+ {[%clk 0:00:09]}  Kf6 {[%clk 0:00:05]} 41. f4 {[%clk 0:00:09]}  Re6+ {[%clk 0:00:05]} 42. Kd5 {[%clk 0:00:08]}  Re3 {[%clk 0:00:04]} 43. Kxc5 {[%clk 0:00:08]}  Rxb3 {[%clk 0:00:04]} 44. Kxd4 {[%clk 0:00:07]}  Rxb2 {[%clk 0:00:04]} 45. Rc1 {[%clk 0:00:08]}  Rxh2 {[%clk 0:00:04]} 46. Rc6+ {[%clk 0:00:07]}  Kf5 {[%clk 0:00:04]} 47. Ke3 {[%clk 0:00:07]}  Rh3+ {[%clk 0:00:03]} 48. Kf2 {[%clk 0:00:07]}  Ra3 {[%clk 0:00:04]} 49. Kg2 {[%clk 0:00:08]}  Ra7 {[%clk 0:00:03]} 50. Rc5+ {[%clk 0:00:08]}  Kf6 {[%clk 0:00:03]} 51. Rxb5 {[%clk 0:00:08]}  Ke7 {[%clk 0:00:04]} 52. Rc5 {[%clk 0:00:08]}  Rd7 {[%clk 0:00:05]} 53. Kg3 {[%clk 0:00:08]}  Rd6 {[%clk 0:00:05]} 54. Kg4 {[%clk 0:00:08]}  Rd8 {[%clk 0:00:05]} 55. Rc7+ {[%clk 0:00:08]}  Kf8 {[%clk 0:00:05]} 56. Ra7 {[%clk 0:00:08]}  Kg8 {[%clk 0:00:06]} 57. Kf5 {[%clk 0:00:08]}  Rf8 {[%clk 0:00:06]} 58. Kg6 {[%clk 0:00:07]}  Nh8+ {[%clk 0:00:06]} 59. Kh5 {[%clk 0:00:07]}  Rf7 {[%clk 0:00:07]} 60. Ra8+ {[%clk 0:00:06]}  Rf8 {[%clk 0:00:07]} 61. Ra4 {[%clk 0:00:06]}  Kh7 {[%clk 0:00:06]} 62. Kg4 {[%clk 0:00:04]}  Rf6 {[%clk 0:00:06]} 63. f5 {[%clk 0:00:03]}  Nf7 {[%clk 0:00:06]} 64. Ra7 {[%clk 0:00:03]}  Nd6 {[%clk 0:00:06]} 65. Kf4 {[%clk 0:00:02]}  Nxf5 {[%clk 0:00:06]} 66. Ke5 {[%clk 0:00:02]}  Nh4 {[%clk 0:00:06]} 67. Ra8 {[%clk 0:00:01]}  Ng6+ {[%clk 0:00:07]} 0-1


[Site "https://www.chess.com"]

[Event "Titled Tuesday Blitz May 25 2021"]
[White "Leitao, Rafael"]
[Black "Ibadov, Dashgyn"]
[WhiteFideId "2101246"]
[BlackFideId "24107514"]
[WhiteElo "2609"]
[BlackElo "2191"]
[Result "1-0"]
[Round "06"]
[TimeControl "180+1"]
[Date "2021.05.25"]
[WhiteClock "0:02:09"]
[BlackClock "0:01:40"]

1. c4 {[%clk 0:03:00]}  e6 {[%clk 0:02:59]} 2. g3 {[%clk 0:03:00]}  d5 {[%clk 0:03:00]} 3. Bg2 {[%clk 0:03:01]}  Nf6 {[%clk 0:02:59]} 4. Nf3 {[%clk 0:03:01]}  d4 {[%clk 0:02:59]} 5. O-O {[%clk 0:02:58]}  Nc6 {[%clk 0:02:45]} 6. e3 {[%clk 0:02:55]}  e5 {[%clk 0:02:44]} 7. b4 {[%clk 0:02:46]}  Bxb4 {[%clk 0:02:38]} 8. Nxe5 {[%clk 0:02:40]}  O-O {[%clk 0:02:30]} 9. Bxc6 {[%clk 0:02:38]}  bxc6 {[%clk 0:02:31]} 10. Nxc6 {[%clk 0:02:37]}  Qd6 {[%clk 0:02:24]} 11. Nxb4 {[%clk 0:02:37]}  Qxb4 {[%clk 0:02:24]} 12. Ba3 {[%clk 0:02:36]}  Qxc4 {[%clk 0:02:25]} 13. Bxf8 {[%clk 0:02:36]}  Kxf8 {[%clk 0:02:06]} 14. d3 {[%clk 0:02:35]}  Qc6 {[%clk 0:02:02]} 15. e4 {[%clk 0:02:32]}  Bh3 {[%clk 0:02:02]} 16. Re1 {[%clk 0:02:32]}  Ng4 {[%clk 0:02:00]} 17. Nd2 {[%clk 0:02:23]}  Kg8 {[%clk 0:01:53]} 18. Nf3 {[%clk 0:02:16]}  Qh6 {[%clk 0:01:40]} 19. Qc1 {[%clk 0:02:13]}  Qh5 {[%clk 0:01:40]} 20. Qg5 {[%clk 0:02:09]} 1-0


[Site "https://www.chess.com"]

[Event "Titled Tuesday Blitz May 25 2021"]
[White "Maevsky, Nikolay"]
[Black "Triapishko, Alexandr"]
[WhiteFideId "4198220"]
[BlackFideId "14122286"]
[WhiteElo "2282"]
[BlackElo "2490"]
[Result "0-1"]
[Round "06"]
[TimeControl "180+1"]
[Date "2021.05.25"]
[WhiteClock "0:00:09"]
[BlackClock "0:00:04"]

1. d4 {[%clk 0:03:00]}  c5 {[%clk 0:02:47]} 2. e3 {[%clk 0:03:00]}  Nf6 {[%clk 0:02:46]} 3. Nf3 {[%clk 0:03:00]}  g6 {[%clk 0:02:45]} 4. c4 {[%clk 0:03:00]}  Bg7 {[%clk 0:02:45]} 5. d5 {[%clk 0:03:01]}  O-O {[%clk 0:02:44]} 6. Nc3 {[%clk 0:03:01]}  e6 {[%clk 0:02:43]} 7. Be2 {[%clk 0:03:01]}  exd5 {[%clk 0:02:44]} 8. cxd5 {[%clk 0:03:01]}  d6 {[%clk 0:02:45]} 9. e4 {[%clk 0:03:01]}  Bg4 {[%clk 0:02:40]} 10. O-O {[%clk 0:03:00]}  a6 {[%clk 0:02:40]} 11. a4 {[%clk 0:02:59]}  Nbd7 {[%clk 0:02:40]} 12. Nd2 {[%clk 0:02:54]}  Bxe2 {[%clk 0:02:40]} 13. Qxe2 {[%clk 0:02:54]}  Re8 {[%clk 0:02:40]} 14. Re1 {[%clk 0:02:43]}  b6 {[%clk 0:02:21]} 15. h3 {[%clk 0:02:43]}  Qc7 {[%clk 0:02:03]} 16. Nc4 {[%clk 0:02:41]}  Ne5 {[%clk 0:01:59]} 17. Bf4 {[%clk 0:02:36]}  Nxc4 {[%clk 0:01:57]} 18. Qxc4 {[%clk 0:02:36]}  Nd7 {[%clk 0:01:57]} 19. Qe2 {[%clk 0:02:29]}  c4 {[%clk 0:01:43]} 20. Qc2 {[%clk 0:02:15]}  Nc5 {[%clk 0:01:28]} 21. Be3 {[%clk 0:02:06]}  Nd3 {[%clk 0:01:24]} 22. Red1 {[%clk 0:02:02]}  Qb7 {[%clk 0:01:13]} 23. b3 {[%clk 0:01:10]}  b5 {[%clk 0:01:00]} 24. axb5 {[%clk 0:01:09]}  axb5 {[%clk 0:01:01]} 25. Rxa8 {[%clk 0:01:08]}  Rxa8 {[%clk 0:00:57]} 26. Nxb5 {[%clk 0:00:39]}  Qxb5 {[%clk 0:00:50]} 27. bxc4 {[%clk 0:00:40]}  Nb4 {[%clk 0:00:50]} 28. Qb3 {[%clk 0:00:40]}  Qa4 {[%clk 0:00:48]} 29. Rb1 {[%clk 0:00:35]}  Qxb3 {[%clk 0:00:47]} 30. Rxb3 {[%clk 0:00:35]}  Nc2 {[%clk 0:00:47]} 31. Bf4 {[%clk 0:00:32]}  Nd4 {[%clk 0:00:47]} 32. Re3 {[%clk 0:00:28]}  Rc8 {[%clk 0:00:44]} 33. Bxd6 {[%clk 0:00:25]}  Rxc4 {[%clk 0:00:44]} 34. Bg3 {[%clk 0:00:20]}  Rc8 {[%clk 0:00:39]} 35. Kh2 {[%clk 0:00:20]}  Rd8 {[%clk 0:00:33]} 36. Rd3 {[%clk 0:00:17]}  f5 {[%clk 0:00:30]} 37. f3 {[%clk 0:00:10]}  Rd7 {[%clk 0:00:23]} 38. Bf2 {[%clk 0:00:08]}  fxe4 {[%clk 0:00:23]} 39. fxe4 {[%clk 0:00:08]}  Be5+ {[%clk 0:00:23]} 40. g3 {[%clk 0:00:08]}  Nb5 {[%clk 0:00:21]} 41. Rb3 {[%clk 0:00:08]}  Nd6 {[%clk 0:00:21]} 42. Rb4 {[%clk 0:00:08]}  Kg7 {[%clk 0:00:18]} 43. Kg2 {[%clk 0:00:08]}  Rc7 {[%clk 0:00:18]} 44. Rb6 {[%clk 0:00:04]}  h5 {[%clk 0:00:17]} 45. Rc6 {[%clk 0:00:04]}  Rb7 {[%clk 0:00:17]} 46. g4 {[%clk 0:00:03]}  hxg4 {[%clk 0:00:13]} 47. hxg4 {[%clk 0:00:04]}  Nxe4 {[%clk 0:00:14]} 48. Bb6 {[%clk 0:00:02]}  Nd6 {[%clk 0:00:10]} 49. Bc5 {[%clk 0:00:02]}  Nf7 {[%clk 0:00:06]} 50. Bb6 {[%clk 0:00:02]}  Rd7 {[%clk 0:00:06]} 51. d6 {[%clk 0:00:01]}  Bxd6 {[%clk 0:00:06]} 52. Ba5 {[%clk 0:00:01]}  Be5 {[%clk 0:00:06]} 53. Rc5 {[%clk 0:00:01]}  Rd4 {[%clk 0:00:05]} 54. Kf3 {[%clk 0:00:02]}  Rf4+ {[%clk 0:00:05]} 55. Ke3 {[%clk 0:00:01]}  Rxg4 {[%clk 0:00:05]} 56. Bc3 {[%clk 0:00:02]}  Rg3+ {[%clk 0:00:04]} 57. Ke4 {[%clk 0:00:02]}  Rxc3 {[%clk 0:00:04]} 58. Rxe5 {[%clk 0:00:02]}  Nxe5 {[%clk 0:00:03]} 59. Kd4 {[%clk 0:00:03]}  Rc8 {[%clk 0:00:04]} 60. Kxe5 {[%clk 0:00:03]}  Rf8 {[%clk 0:00:04]} 61. Ke6 {[%clk 0:00:03]}  g5 {[%clk 0:00:05]} 62. Ke7 {[%clk 0:00:04]}  g4 {[%clk 0:00:06]} 63. Ke6 {[%clk 0:00:05]}  g3 {[%clk 0:00:07]} 64. Ke5 {[%clk 0:00:05]}  g2 {[%clk 0:00:08]} 65. Ke4 {[%clk 0:00:06]}  g1=Q {[%clk 0:00:08]} 66. Kd3 {[%clk 0:00:07]}  Qd1+ {[%clk 0:00:08]} 67. Ke3 {[%clk 0:00:07]}  Re8+ {[%clk 0:00:08]} 68. Kf2 {[%clk 0:00:08]}  Qd4+ {[%clk 0:00:07]} 69. Kg3 {[%clk 0:00:08]}  Qe3+ {[%clk 0:00:07]} 70. Kh2 {[%clk 0:00:08]}  Rh8+ {[%clk 0:00:07]} 71. Kg2 {[%clk 0:00:09]}  Qe2+ {[%clk 0:00:07]} 72. Kg3 {[%clk 0:00:09]}  Qe5+ {[%clk 0:00:06]} 73. Kg4 {[%clk 0:00:09]}  Rh6 {[%clk 0:00:02]} 74. Kf3 {[%clk 0:00:09]}  Rh3+ {[%clk 0:00:03]} 75. Kg4 {[%clk 0:00:10]}  Rg3+ {[%clk 0:00:03]} 76. Kh4 {[%clk 0:00:09]}  Qg5# {[%clk 0:00:04]} 0-1


[Site "https://www.chess.com"]

[Event "Titled Tuesday Blitz May 25 2021"]
[White "Maiorov, Nikita"]
[Black "Golubev, Mikhail"]
[WhiteFideId "13501720"]
[BlackFideId "14100983"]
[WhiteElo "2440"]
[BlackElo "2374"]
[Result "1-0"]
[Round "06"]
[TimeControl "180+1"]
[Date "2021.05.25"]
[WhiteClock "0:01:19"]
[BlackClock "0:00:07"]

1. d4 {[%clk 0:03:00]}  Nf6 {[%clk 0:02:59]} 2. c4 {[%clk 0:02:59]}  g6 {[%clk 0:02:59]} 3. g3 {[%clk 0:02:58]}  Bg7 {[%clk 0:02:59]} 4. Bg2 {[%clk 0:02:57]}  O-O {[%clk 0:02:59]} 5. Nc3 {[%clk 0:02:58]}  d6 {[%clk 0:02:59]} 6. Nf3 {[%clk 0:02:58]}  Nbd7 {[%clk 0:03:00]} 7. O-O {[%clk 0:02:59]}  e5 {[%clk 0:03:00]} 8. e4 {[%clk 0:02:59]}  Re8 {[%clk 0:03:00]} 9. Re1 {[%clk 0:02:58]}  exd4 {[%clk 0:02:56]} 10. Nxd4 {[%clk 0:02:58]}  c6 {[%clk 0:02:55]} 11. b3 {[%clk 0:02:51]}  Ng4 {[%clk 0:02:39]} 12. Rf1 {[%clk 0:02:24]}  Nc5 {[%clk 0:02:31]} 13. h3 {[%clk 0:02:18]}  Nf6 {[%clk 0:02:15]} 14. Re1 {[%clk 0:02:15]}  d5 {[%clk 0:02:01]} 15. cxd5 {[%clk 0:02:09]}  cxd5 {[%clk 0:01:41]} 16. exd5 {[%clk 0:02:06]}  Rxe1+ {[%clk 0:01:36]} 17. Qxe1 {[%clk 0:02:06]}  Nxd5 {[%clk 0:01:29]} 18. Nxd5 {[%clk 0:01:59]}  Bxd4 {[%clk 0:01:29]} 19. Be3 {[%clk 0:01:56]}  Nd3 {[%clk 0:00:36]} 20. Qd1 {[%clk 0:01:43]}  Bxa1 {[%clk 0:00:36]} 21. Qxa1 {[%clk 0:01:43]}  Be6 {[%clk 0:00:16]} 22. Bh6 {[%clk 0:01:28]}  f6 {[%clk 0:00:14]} 23. Nxf6+ {[%clk 0:01:28]}  Kf7 {[%clk 0:00:14]} 24. Nxh7 {[%clk 0:01:28]}  Qh8 {[%clk 0:00:11]} 25. Ng5+ {[%clk 0:01:23]}  Ke7 {[%clk 0:00:11]} 26. Bg7 {[%clk 0:01:23]}  Qc8 {[%clk 0:00:09]} 27. Qf6+ {[%clk 0:01:22]}  Ke8 {[%clk 0:00:07]} 28. Nxe6 {[%clk 0:01:19]} 1-0


[Site "https://www.chess.com"]